[Event "Titled Tuesday Blitz August 02 Late 2022"]
[White "Swiercz, Dariusz"]
[Black "Baches Garcia, Guillermo"]
[WhiteFideId "1126881"]
[BlackFideId "2209764"]
[WhiteElo "2627"]
[BlackElo "2490"]
[Result "1-0"]
[Round "01"]
[TimeControl "180+1"]
[Date "2022.08.02"]
[WhiteClock "0:00:18"]
[BlackClock "0:00:10"]

1. e4 {[%clk 0:02:52]}  c5 {[%clk 0:03:00]} 2. Nc3 {[%clk 0:02:52]}  d6 {[%clk 0:03:00]} 3. g3 {[%clk 0:02:52]}  g6 {[%clk 0:02:59]} 4. Bg2 {[%clk 0:02:52]}  Bg7 {[%clk 0:02:59]} 5. Nge2 {[%clk 0:02:53]}  Nc6 {[%clk 0:03:00]} 6. O-O {[%clk 0:02:52]}  e5 {[%clk 0:02:56]} 7. a3 {[%clk 0:02:52]}  Nge7 {[%clk 0:02:55]} 8. Rb1 {[%clk 0:02:52]}  a5 {[%clk 0:02:55]} 9. d3 {[%clk 0:02:51]}  O-O {[%clk 0:02:54]} 10. h3 {[%clk 0:02:43]}  Be6 {[%clk 0:02:52]} 11. Nd5 {[%clk 0:02:42]}  b5 {[%clk 0:02:38]} 12. Be3 {[%clk 0:02:30]}  Nd4 {[%clk 0:02:30]} 13. Nxe7+ {[%clk 0:02:08]}  Qxe7 {[%clk 0:02:29]} 14. c3 {[%clk 0:02:07]}  Nxe2+ {[%clk 0:02:16]} 15. Qxe2 {[%clk 0:02:07]}  b4 {[%clk 0:02:11]} 16. Rfd1 {[%clk 0:01:53]}  Rab8 {[%clk 0:01:58]} 17. axb4 {[%clk 0:01:44]}  axb4 {[%clk 0:01:58]} 18. Ra1 {[%clk 0:01:44]}  bxc3 {[%clk 0:01:53]} 19. bxc3 {[%clk 0:01:44]}  Rb3 {[%clk 0:01:53]} 20. Qc2 {[%clk 0:01:42]}  Rfb8 {[%clk 0:01:50]} 21. Rdb1 {[%clk 0:01:40]}  c4 {[%clk 0:01:35]} 22. dxc4 {[%clk 0:01:30]}  Rxb1+ {[%clk 0:01:28]} 23. Rxb1 {[%clk 0:01:29]}  Rxb1+ {[%clk 0:01:28]} 24. Qxb1 {[%clk 0:01:30]}  Bxc4 {[%clk 0:01:28]} 25. Qb8+ {[%clk 0:01:20]}  Qf8 {[%clk 0:01:19]} 26. Qc7 {[%clk 0:01:20]}  Be6 {[%clk 0:01:15]} 27. h4 {[%clk 0:01:11]}  h6 {[%clk 0:01:09]} 28. Bf1 {[%clk 0:01:07]}  Qc8 {[%clk 0:01:06]} 29. Qxc8+ {[%clk 0:01:06]}  Bxc8 {[%clk 0:01:06]} 30. Bc4 {[%clk 0:01:07]}  Kf8 {[%clk 0:01:03]} 31. Bd5 {[%clk 0:01:05]}  Ke7 {[%clk 0:01:01]} 32. Kf1 {[%clk 0:01:04]}  Be6 {[%clk 0:00:52]} 33. c4 {[%clk 0:01:04]}  f5 {[%clk 0:00:46]} 34. f3 {[%clk 0:01:01]}  h5 {[%clk 0:00:36]} 35. Ke2 {[%clk 0:01:00]}  Bxd5 {[%clk 0:00:32]} 36. cxd5 {[%clk 0:00:53]}  Bf6 {[%clk 0:00:29]} 37. Kd3 {[%clk 0:00:36]}  f4 {[%clk 0:00:24]} 38. gxf4 {[%clk 0:00:33]}  exf4 {[%clk 0:00:24]} 39. Bxf4 {[%clk 0:00:28]}  Bxh4 {[%clk 0:00:22]} 40. Ke2 {[%clk 0:00:28]}  Bf6 {[%clk 0:00:20]} 41. Kf2 {[%clk 0:00:28]}  Be5 {[%clk 0:00:18]} 42. Bg5+ {[%clk 0:00:23]}  Bf6 {[%clk 0:00:14]} 43. Bf4 {[%clk 0:00:20]}  g5 {[%clk 0:00:13]} 44. Be3 {[%clk 0:00:20]}  h4 {[%clk 0:00:12]} 45. Kg2 {[%clk 0:00:20]}  Kf7 {[%clk 0:00:12]} 46. Kh3 {[%clk 0:00:20]}  Kg6 {[%clk 0:00:12]} 47. Kg4 {[%clk 0:00:21]}  Be7 {[%clk 0:00:13]} 48. f4 {[%clk 0:00:18]}  gxf4 {[%clk 0:00:13]} 49. Bxf4 {[%clk 0:00:19]}  Kf7 {[%clk 0:00:12]} 50. Be3 {[%clk 0:00:18]}  Kg6 {[%clk 0:00:12]} 51. Bf2 {[%clk 0:00:17]}  Bd8 {[%clk 0:00:11]} 52. Bxh4 {[%clk 0:00:15]}  Bxh4 {[%clk 0:00:11]} 53. Kxh4 {[%clk 0:00:16]}  Kf6 {[%clk 0:00:12]} 54. Kg4 {[%clk 0:00:17]}  Ke5 {[%clk 0:00:12]} 55. Kf3 {[%clk 0:00:17]}  Kd4 {[%clk 0:00:10]} 56. Kf4 {[%clk 0:00:18]}  Kc5 {[%clk 0:00:10]} 57. Kf5 {[%clk 0:00:17]}  Kd4 {[%clk 0:00:10]} 58. Ke6 {[%clk 0:00:18]} 1-0


[Site "https://www.chess.com"]

[Event "Titled Tuesday Blitz August 02 Late 2022"]
[White "Xiong, Jeffery"]
[Black "Espinosa Veloz, Ermes"]
[WhiteFideId "2047640"]
[BlackFideId "3507424"]
[WhiteElo "2714"]
[BlackElo "2333"]
[Result "1-0"]
[Round "01"]
[TimeControl "180+1"]
[Date "2022.08.02"]
[WhiteClock "0:01:14"]
[BlackClock "0:00:07"]

1. e4 {[%clk 0:03:00]}  e5 {[%clk 0:02:59]} 2. Nf3 {[%clk 0:03:01]}  Nc6 {[%clk 0:02:59]} 3. Nc3 {[%clk 0:03:02]}  Nf6 {[%clk 0:02:58]} 4. d4 {[%clk 0:03:02]}  exd4 {[%clk 0:02:58]} 5. Nxd4 {[%clk 0:03:03]}  Bb4 {[%clk 0:02:58]} 6. Nxc6 {[%clk 0:03:04]}  bxc6 {[%clk 0:02:59]} 7. Bd3 {[%clk 0:03:04]}  d6 {[%clk 0:02:59]} 8. O-O {[%clk 0:03:05]}  h6 {[%clk 0:02:55]} 9. Na4 {[%clk 0:03:02]}  c5 {[%clk 0:02:35]} 10. Qf3 {[%clk 0:02:08]}  Bd7 {[%clk 0:02:22]} 11. a3 {[%clk 0:02:08]}  Ba5 {[%clk 0:02:19]} 12. e5 {[%clk 0:02:08]}  Ng4 {[%clk 0:01:31]} 13. exd6 {[%clk 0:02:03]}  cxd6 {[%clk 0:01:32]} 14. b4 {[%clk 0:02:03]}  Ne5 {[%clk 0:01:21]} 15. Qg3 {[%clk 0:02:03]}  Bxa4 {[%clk 0:01:19]} 16. Qxg7 {[%clk 0:02:00]}  Kd7 {[%clk 0:01:05]} 17. bxa5 {[%clk 0:01:30]}  Rg8 {[%clk 0:00:58]} 18. Qh7 {[%clk 0:01:30]}  Bc6 {[%clk 0:00:35]} 19. Be4 {[%clk 0:01:28]}  Qh4 {[%clk 0:00:25]} 20. Qf5+ {[%clk 0:01:24]}  Kc7 {[%clk 0:00:23]} 21. Bxc6 {[%clk 0:01:25]}  Kxc6 {[%clk 0:00:12]} 22. Bf4 {[%clk 0:01:25]}  Rg6 {[%clk 0:00:09]} 23. Bxe5 {[%clk 0:01:19]}  dxe5 {[%clk 0:00:10]} 24. Rfd1 {[%clk 0:01:15]}  Qe7 {[%clk 0:00:07]} 25. Qe4+ {[%clk 0:01:14]}  Kc7 {[%clk 0:00:07]} 26. Qxa8 {[%clk 0:01:14]} 1-0


[Site "https://www.chess.com"]

[Event "Titled Tuesday Blitz August 02 Late 2022"]
[White "Andreikin, Dmitry"]
[Black "Perera Alfonso, Rene Humberto"]
[WhiteFideId "4158814"]
[BlackFideId "3514722"]
[WhiteElo "2736"]
[BlackElo "2313"]
[Result "1-0"]
[Round "02"]
[TimeControl "180+1"]
[Date "2022.08.02"]
[WhiteClock "0:02:04"]
[BlackClock "0:00:38"]

1. d4 {[%clk 0:03:00]}  d5 {[%clk 0:02:59]} 2. c4 {[%clk 0:03:01]}  c6 {[%clk 0:02:59]} 3. Nf3 {[%clk 0:03:01]}  Nf6 {[%clk 0:02:59]} 4. Qc2 {[%clk 0:03:02]}  dxc4 {[%clk 0:02:57]} 5. e4 {[%clk 0:03:01]}  Bg4 {[%clk 0:02:55]} 6. Bxc4 {[%clk 0:03:00]}  Bxf3 {[%clk 0:02:55]} 7. gxf3 {[%clk 0:03:01]}  Qxd4 {[%clk 0:02:54]} 8. Be3 {[%clk 0:03:01]}  Qe5 {[%clk 0:02:54]} 9. Nc3 {[%clk 0:02:57]}  e6 {[%clk 0:02:53]} 10. f4 {[%clk 0:02:57]}  Qh5 {[%clk 0:02:53]} 11. Be2 {[%clk 0:02:48]}  Qa5 {[%clk 0:02:51]} 12. O-O-O {[%clk 0:02:46]}  Nbd7 {[%clk 0:02:50]} 13. Rhg1 {[%clk 0:02:44]}  O-O-O {[%clk 0:02:47]} 14. Rg5 {[%clk 0:02:38]}  Bc5 {[%clk 0:02:21]} 15. Kb1 {[%clk 0:02:34]}  h6 {[%clk 0:02:17]} 16. Rxg7 {[%clk 0:02:34]}  Bxe3 {[%clk 0:02:13]} 17. fxe3 {[%clk 0:02:35]}  Rhf8 {[%clk 0:02:06]} 18. e5 {[%clk 0:02:35]}  Nd5 {[%clk 0:02:00]} 19. Nxd5 {[%clk 0:02:33]}  exd5 {[%clk 0:02:01]} 20. Qf5 {[%clk 0:02:30]}  Qa4 {[%clk 0:01:48]} 21. Rxf7 {[%clk 0:02:13]}  Rxf7 {[%clk 0:01:49]} 22. Qxf7 {[%clk 0:02:13]}  Qe4+ {[%clk 0:01:48]} 23. Ka1 {[%clk 0:02:06]}  Qxe3 {[%clk 0:01:46]} 24. Bg4 {[%clk 0:02:06]}  h5 {[%clk 0:01:34]} 25. Bf5 {[%clk 0:02:06]}  Qf3 {[%clk 0:00:45]} 26. Rb1 {[%clk 0:02:06]}  Kb8 {[%clk 0:00:40]} 27. Bxd7 {[%clk 0:02:05]}  Qxf4 {[%clk 0:00:38]} 28. Qxf4 {[%clk 0:02:04]} 1-0


[Site "https://www.chess.com"]

[Event "Titled Tuesday Blitz August 02 Late 2022"]
[White "Barria Zuniga, Daniel"]
[Black "Nakamura, Hikaru"]
[WhiteFideId "3400816"]
[BlackFideId "2016192"]
[WhiteElo "2414"]
[BlackElo "2850"]
[Result "0-1"]
[Round "02"]
[TimeControl "180+1"]
[Date "2022.08.02"]
[WhiteClock "0:00:02"]
[BlackClock "0:01:33"]

1. d4 {[%clk 0:03:00]}  g6 {[%clk 0:02:59]} 2. c4 {[%clk 0:02:58]}  Bg7 {[%clk 0:02:59]} 3. Nc3 {[%clk 0:02:57]}  c5 {[%clk 0:03:00]} 4. d5 {[%clk 0:02:57]}  Bxc3+ {[%clk 0:03:01]} 5. bxc3 {[%clk 0:02:58]}  f5 {[%clk 0:03:02]} 6. e4 {[%clk 0:02:58]}  fxe4 {[%clk 0:03:01]} 7. f3 {[%clk 0:02:58]}  Qa5 {[%clk 0:02:59]} 8. fxe4 {[%clk 0:02:55]}  d6 {[%clk 0:02:57]} 9. Nf3 {[%clk 0:02:54]}  Bg4 {[%clk 0:02:57]} 10. Be2 {[%clk 0:02:51]}  Bxf3 {[%clk 0:02:49]} 11. gxf3 {[%clk 0:02:42]}  Nf6 {[%clk 0:02:49]} 12. O-O {[%clk 0:02:41]}  Nbd7 {[%clk 0:02:49]} 13. Qc2 {[%clk 0:02:35]}  g5 {[%clk 0:02:46]} 14. Kh1 {[%clk 0:02:33]}  h6 {[%clk 0:02:45]} 15. f4 {[%clk 0:02:31]}  gxf4 {[%clk 0:02:46]} 16. Bxf4 {[%clk 0:02:31]}  O-O-O {[%clk 0:02:46]} 17. Rg1 {[%clk 0:02:18]}  Rdf8 {[%clk 0:02:44]} 18. Raf1 {[%clk 0:02:14]}  h5 {[%clk 0:02:41]} 19. h3 {[%clk 0:02:09]}  Kb8 {[%clk 0:02:39]} 20. Bh2 {[%clk 0:02:04]}  Ne5 {[%clk 0:02:30]} 21. Bxe5 {[%clk 0:01:40]}  dxe5 {[%clk 0:02:30]} 22. Rf5 {[%clk 0:01:40]}  Qc7 {[%clk 0:02:27]} 23. Qd3 {[%clk 0:01:17]}  h4 {[%clk 0:02:23]} 24. Rgg5 {[%clk 0:01:02]}  Nd7 {[%clk 0:02:20]} 25. Qf3 {[%clk 0:01:00]}  a6 {[%clk 0:02:05]} 26. Rf7 {[%clk 0:00:54]}  Qd6 {[%clk 0:02:02]} 27. Qf5 {[%clk 0:00:46]}  Rxf7 {[%clk 0:01:57]} 28. Qxf7 {[%clk 0:00:47]}  Nf6 {[%clk 0:01:58]} 29. Rg7 {[%clk 0:00:27]}  Nxe4 {[%clk 0:01:54]} 30. Bg4 {[%clk 0:00:26]}  Qf6 {[%clk 0:01:35]} 31. Qxf6 {[%clk 0:00:17]}  exf6 {[%clk 0:01:36]} 32. Bf3 {[%clk 0:00:16]}  Ng3+ {[%clk 0:01:33]} 33. Kg2 {[%clk 0:00:15]}  e4 {[%clk 0:01:33]} 34. Bd1 {[%clk 0:00:12]}  Nf5 {[%clk 0:01:34]} 35. Rf7 {[%clk 0:00:11]}  Ne3+ {[%clk 0:01:34]} 36. Kf2 {[%clk 0:00:11]}  Nxd1+ {[%clk 0:01:35]} 37. Ke2 {[%clk 0:00:12]}  Nxc3+ {[%clk 0:01:35]} 38. Ke3 {[%clk 0:00:12]}  b5 {[%clk 0:01:34]} 39. Rxf6 {[%clk 0:00:10]}  bxc4 {[%clk 0:01:33]} 40. Rxa6 {[%clk 0:00:07]}  Re8 {[%clk 0:01:32]} 41. Re6 {[%clk 0:00:01]}  Nxd5+ {[%clk 0:01:32]} 42. Kxe4 {[%clk 0:00:02]}  Rxe6+ {[%clk 0:01:33]} 43. Kxd5 {[%clk 0:00:02]}  c3 {[%clk 0:01:33]} 0-1


[Site "https://www.chess.com"]

[Event "Titled Tuesday Blitz August 02 Late 2022"]
[White "Bilych, Olexiy"]
[Black "Perez Leiva, Jerzy Jesus"]
[WhiteFideId "14156504"]
[BlackFideId "3524337"]
[WhiteElo "2189"]
[BlackElo "2287"]
[Result "0-1"]
[Round "02"]
[TimeControl "180+1"]
[Date "2022.08.02"]
[WhiteClock "0:00:09"]
[BlackClock "0:00:16"]

1. e4 {[%clk 0:03:00]}  e5 {[%clk 0:02:58]} 2. Nf3 {[%clk 0:02:58]}  d6 {[%clk 0:02:59]} 3. Bc4 {[%clk 0:02:57]}  Be7 {[%clk 0:02:48]} 4. d4 {[%clk 0:02:52]}  exd4 {[%clk 0:02:48]} 5. Nxd4 {[%clk 0:02:42]}  Nf6 {[%clk 0:02:46]} 6. Nc3 {[%clk 0:02:42]}  O-O {[%clk 0:02:44]} 7. O-O {[%clk 0:02:42]}  Nbd7 {[%clk 0:02:38]} 8. Nf5 {[%clk 0:02:39]}  Nc5 {[%clk 0:02:34]} 9. Re1 {[%clk 0:02:29]}  Bxf5 {[%clk 0:02:23]} 10. exf5 {[%clk 0:02:30]}  c6 {[%clk 0:02:23]} 11. g4 {[%clk 0:02:18]}  d5 {[%clk 0:02:17]} 12. Bf1 {[%clk 0:02:18]}  Nfe4 {[%clk 0:02:15]} 13. Nxe4 {[%clk 0:02:14]}  Nxe4 {[%clk 0:02:16]} 14. Be3 {[%clk 0:02:12]}  Bc5 {[%clk 0:02:08]} 15. Bxc5 {[%clk 0:02:06]}  Nxc5 {[%clk 0:02:07]} 16. Bg2 {[%clk 0:02:06]}  Qf6 {[%clk 0:01:59]} 17. c3 {[%clk 0:02:03]}  Rfe8 {[%clk 0:01:58]} 18. Qd2 {[%clk 0:02:01]}  h6 {[%clk 0:01:44]} 19. h3 {[%clk 0:01:24]}  Nd7 {[%clk 0:01:28]} 20. Qf4 {[%clk 0:01:21]}  Ne5 {[%clk 0:01:04]} 21. Re2 {[%clk 0:01:19]}  Nd3 {[%clk 0:01:03]} 22. Rxe8+ {[%clk 0:01:13]}  Rxe8 {[%clk 0:01:04]} 23. Qd2 {[%clk 0:01:14]}  Nc5 {[%clk 0:00:58]} 24. Re1 {[%clk 0:01:14]}  Rxe1+ {[%clk 0:00:57]} 25. Qxe1 {[%clk 0:01:15]}  Kf8 {[%clk 0:00:56]} 26. Qe3 {[%clk 0:01:14]}  Qe7 {[%clk 0:00:56]} 27. Qf4 {[%clk 0:01:09]}  Kg8 {[%clk 0:00:36]} 28. Qb8+ {[%clk 0:00:57]}  Kh7 {[%clk 0:00:36]} 29. Qxa7 {[%clk 0:00:54]}  Qe1+ {[%clk 0:00:25]} 30. Bf1 {[%clk 0:00:52]}  Nd3 {[%clk 0:00:25]} 31. Qb6 {[%clk 0:00:36]}  Qc1 {[%clk 0:00:14]} 32. f6 {[%clk 0:00:24]}  Nxb2 {[%clk 0:00:04]} 33. Qxb7 {[%clk 0:00:20]}  Qxc3 {[%clk 0:00:03]} 34. Qxf7 {[%clk 0:00:19]}  Qxf6 {[%clk 0:00:04]} 35. Qd7 {[%clk 0:00:16]}  Qg6 {[%clk 0:00:04]} 36. Qe7 {[%clk 0:00:12]}  Qc2 {[%clk 0:00:04]} 37. Qe3 {[%clk 0:00:11]}  c5 {[%clk 0:00:03]} 38. Bg2 {[%clk 0:00:10]}  Qd1+ {[%clk 0:00:02]} 39. Kh2 {[%clk 0:00:11]}  Nc4 {[%clk 0:00:02]} 40. Qe6 {[%clk 0:00:09]}  Nd2 {[%clk 0:00:01]} 41. Qxd5 {[%clk 0:00:08]}  Nf1+ {[%clk 0:00:02]} 42. Kg1 {[%clk 0:00:08]}  Qxd5 {[%clk 0:00:01]} 43. Bxd5 {[%clk 0:00:08]}  Nd2 {[%clk 0:00:02]} 44. a4 {[%clk 0:00:08]}  c4 {[%clk 0:00:02]} 45. Be6 {[%clk 0:00:06]}  g6 {[%clk 0:00:02]} 46. a5 {[%clk 0:00:04]}  c3 {[%clk 0:00:03]} 47. a6 {[%clk 0:00:02]}  c2 {[%clk 0:00:03]} 48. a7 {[%clk 0:00:03]}  c1=Q+ {[%clk 0:00:04]} 49. Kg2 {[%clk 0:00:04]}  Qc6+ {[%clk 0:00:04]} 50. Kg3 {[%clk 0:00:04]}  Ne4+ {[%clk 0:00:04]} 51. Kf4 {[%clk 0:00:04]}  Nc5 {[%clk 0:00:03]} 52. Bc4 {[%clk 0:00:03]}  Ne6+ {[%clk 0:00:03]} 53. Bxe6 {[%clk 0:00:03]}  Qc7+ {[%clk 0:00:03]} 54. Ke4 {[%clk 0:00:03]}  Qxa7 {[%clk 0:00:04]} 55. Kf3 {[%clk 0:00:03]}  Qe7 {[%clk 0:00:05]} 56. Bc4 {[%clk 0:00:03]}  Qf6+ {[%clk 0:00:06]} 57. Kg3 {[%clk 0:00:03]}  g5 {[%clk 0:00:07]} 58. Bd3+ {[%clk 0:00:03]}  Kg7 {[%clk 0:00:07]} 59. Be4 {[%clk 0:00:04]}  Qe5+ {[%clk 0:00:08]} 60. Kf3 {[%clk 0:00:04]}  Qf4+ {[%clk 0:00:09]} 61. Kg2 {[%clk 0:00:04]}  Qxe4+ {[%clk 0:00:09]} 62. Kg3 {[%clk 0:00:05]}  Qf4+ {[%clk 0:00:10]} 63. Kg2 {[%clk 0:00:06]}  Kf6 {[%clk 0:00:11]} 64. f3 {[%clk 0:00:06]}  Ke5 {[%clk 0:00:12]} 65. Kf2 {[%clk 0:00:07]}  Qd2+ {[%clk 0:00:12]} 66. Kg3 {[%clk 0:00:07]}  Qf4+ {[%clk 0:00:13]} 67. Kg2 {[%clk 0:00:08]}  Kd4 {[%clk 0:00:14]} 68. Kf2 {[%clk 0:00:08]}  Kd3 {[%clk 0:00:15]} 69. Kg2 {[%clk 0:00:09]}  Ke3 {[%clk 0:00:16]} 0-1


[Site "https://www.chess.com"]

[Event "Titled Tuesday Blitz August 02 Late 2022"]
[White "Clarke, Brandon G I"]
[Black "Bellissimo, Joseph F."]
[WhiteFideId "400319"]
[BlackFideId "2609843"]
[WhiteElo "2414"]
[BlackElo "2061"]
[Result "1-0"]
[Round "02"]
[TimeControl "180+1"]
[Date "2022.08.02"]
[WhiteClock "0:00:02"]
[BlackClock "0:00:13"]

1. e4 {[%clk 0:02:59]}  e6 {[%clk 0:02:58]} 2. d4 {[%clk 0:02:59]}  d5 {[%clk 0:02:58]} 3. Nd2 {[%clk 0:02:59]}  Nf6 {[%clk 0:02:58]} 4. e5 {[%clk 0:02:59]}  Nfd7 {[%clk 0:02:57]} 5. f4 {[%clk 0:02:57]}  c5 {[%clk 0:02:58]} 6. c3 {[%clk 0:02:57]}  Nc6 {[%clk 0:02:59]} 7. Ndf3 {[%clk 0:02:57]}  Qb6 {[%clk 0:02:57]} 8. g3 {[%clk 0:02:55]}  cxd4 {[%clk 0:02:53]} 9. cxd4 {[%clk 0:02:55]}  f6 {[%clk 0:02:53]} 10. Ne2 {[%clk 0:02:54]}  Bb4+ {[%clk 0:02:47]} 11. Bd2 {[%clk 0:02:54]}  O-O {[%clk 0:02:45]} 12. Bh3 {[%clk 0:02:53]}  Kh8 {[%clk 0:02:42]} 13. a3 {[%clk 0:02:47]}  Bxd2+ {[%clk 0:02:36]} 14. Qxd2 {[%clk 0:02:48]}  Na5 {[%clk 0:02:35]} 15. Rd1 {[%clk 0:02:44]}  Nc4 {[%clk 0:02:34]} 16. Qc3 {[%clk 0:02:36]}  fxe5 {[%clk 0:02:23]} 17. fxe5 {[%clk 0:02:32]}  Qxb2 {[%clk 0:02:05]} 18. Ng5 {[%clk 0:02:29]}  Ndb6 {[%clk 0:01:34]} 19. Qd3 {[%clk 0:02:29]}  g6 {[%clk 0:01:30]} 20. Nf4 {[%clk 0:02:27]}  Qxa3 {[%clk 0:01:22]} 21. O-O {[%clk 0:02:23]}  Qxd3 {[%clk 0:01:19]} 22. Rxd3 {[%clk 0:02:22]}  Bd7 {[%clk 0:01:16]} 23. Rdf3 {[%clk 0:02:15]}  Nd2 {[%clk 0:01:15]} 24. Nxg6+ {[%clk 0:02:15]}  Kg7 {[%clk 0:00:55]} 25. Rxf8 {[%clk 0:01:59]}  Nxf1 {[%clk 0:00:55]} 26. Rf7+ {[%clk 0:01:32]}  Kxg6 {[%clk 0:00:55]} 27. Bxf1 {[%clk 0:01:32]}  Kxg5 {[%clk 0:00:53]} 28. Bd3 {[%clk 0:01:28]}  Rh8 {[%clk 0:00:38]} 29. Rf6 {[%clk 0:01:11]}  Rg8 {[%clk 0:00:25]} 30. h4+ {[%clk 0:01:10]}  Kh5 {[%clk 0:00:23]} 31. Be2+ {[%clk 0:01:10]}  Rg4 {[%clk 0:00:22]} 32. Kh2 {[%clk 0:01:05]}  Nc4 {[%clk 0:00:20]} 33. Kh3 {[%clk 0:00:52]}  Ne3 {[%clk 0:00:20]} 34. Rf7 {[%clk 0:00:21]}  Bc6 {[%clk 0:00:18]} 35. Rxh7+ {[%clk 0:00:20]}  Kg6 {[%clk 0:00:18]} 36. Bd3+ {[%clk 0:00:21]}  Re4 {[%clk 0:00:18]} 37. Re7 {[%clk 0:00:18]}  Nf5 {[%clk 0:00:16]} 38. Rxe6+ {[%clk 0:00:18]}  Kf7 {[%clk 0:00:16]} 39. Rf6+ {[%clk 0:00:19]}  Ke7 {[%clk 0:00:16]} 40. Bxe4 {[%clk 0:00:18]}  Nxd4 {[%clk 0:00:16]} 41. Bd3 {[%clk 0:00:18]}  a5 {[%clk 0:00:15]} 42. h5 {[%clk 0:00:18]}  a4 {[%clk 0:00:16]} 43. h6 {[%clk 0:00:19]}  Nf3 {[%clk 0:00:14]} 44. Rxf3 {[%clk 0:00:18]}  Ke6 {[%clk 0:00:14]} 45. h7 {[%clk 0:00:18]}  Kxe5 {[%clk 0:00:15]} 46. h8=Q+ {[%clk 0:00:19]}  Kd6 {[%clk 0:00:16]} 47. Qf8+ {[%clk 0:00:17]}  Kc7 {[%clk 0:00:16]} 48. Qe7+ {[%clk 0:00:17]}  Kb6 {[%clk 0:00:17]} 49. Qb4+ {[%clk 0:00:16]}  Kc7 {[%clk 0:00:17]} 50. Rf7+ {[%clk 0:00:15]}  Bd7+ {[%clk 0:00:16]} 51. Bf5 {[%clk 0:00:14]}  Kc6 {[%clk 0:00:13]} 52. Bxd7+ {[%clk 0:00:10]}  Kc7 {[%clk 0:00:14]} 53. Bf5+ {[%clk 0:00:07]}  Kc6 {[%clk 0:00:13]} 54. Rf6+ {[%clk 0:00:06]}  Kc7 {[%clk 0:00:13]} 55. Qd6# {[%clk 0:00:02]} 1-0


[Site "https://www.chess.com"]

[Event "Titled Tuesday Blitz August 02 Late 2022"]
[White "Czarnota, Pawel"]
[Black "Trakru, Rohun"]
[WhiteFideId "1121219"]
[BlackFideId "2097613"]
[WhiteElo "2534"]
[BlackElo "1746"]
[Result "1-0"]
[Round "02"]
[TimeControl "180+1"]
[Date "2022.08.02"]
[WhiteClock "0:02:32"]
[BlackClock "0:00:56"]

1. e4 {[%clk 0:03:00]}  c6 {[%clk 0:02:59]} 2. d4 {[%clk 0:03:00]}  d5 {[%clk 0:03:00]} 3. Nc3 {[%clk 0:03:00]}  dxe4 {[%clk 0:03:01]} 4. Nxe4 {[%clk 0:03:01]}  Nf6 {[%clk 0:03:01]} 5. Nxf6+ {[%clk 0:03:01]}  exf6 {[%clk 0:03:02]} 6. c3 {[%clk 0:03:02]}  Bd6 {[%clk 0:03:03]} 7. Bd3 {[%clk 0:03:01]}  O-O {[%clk 0:03:03]} 8. Qc2 {[%clk 0:03:02]}  Re8+ {[%clk 0:03:04]} 9. Ne2 {[%clk 0:03:02]}  h5 {[%clk 0:03:05]} 10. O-O {[%clk 0:03:02]}  Nd7 {[%clk 0:02:49]} 11. Nf4 {[%clk 0:03:02]}  h4 {[%clk 0:02:43]} 12. Qd1 {[%clk 0:03:02]}  Nf8 {[%clk 0:02:34]} 13. Qh5 {[%clk 0:03:02]}  Qc7 {[%clk 0:02:25]} 14. g3 {[%clk 0:02:56]}  g6 {[%clk 0:02:01]} 15. Qh6 {[%clk 0:02:53]}  Bg4 {[%clk 0:01:31]} 16. Qxh4 {[%clk 0:02:47]}  Bf3 {[%clk 0:01:31]} 17. Qxf6 {[%clk 0:02:46]}  Be7 {[%clk 0:01:27]} 18. Ne6 {[%clk 0:02:34]}  Nxe6 {[%clk 0:00:55]} 19. Qxf3 {[%clk 0:02:34]}  Bg5 {[%clk 0:00:56]} 20. h4 {[%clk 0:02:32]} 1-0


[Site "https://www.chess.com"]

[Event "Titled Tuesday Blitz August 02 Late 2022"]
[White "Dounis, Alexandros"]
[Black "Paravyan, David"]
[WhiteFideId "4213238"]
[BlackFideId "4194985"]
[WhiteElo "2204"]
[BlackElo "2569"]
[Result "0-1"]
[Round "02"]
[TimeControl "180+1"]
[Date "2022.08.02"]
[WhiteClock "0:00:11"]
[BlackClock "0:01:41"]

1. Nf3 {[%clk 0:02:56]}  Nf6 {[%clk 0:02:59]} 2. g3 {[%clk 0:02:56]}  g6 {[%clk 0:03:00]} 3. Bg2 {[%clk 0:02:57]}  Bg7 {[%clk 0:03:00]} 4. O-O {[%clk 0:02:58]}  O-O {[%clk 0:03:01]} 5. d4 {[%clk 0:02:59]}  d5 {[%clk 0:03:01]} 6. c4 {[%clk 0:02:59]}  c6 {[%clk 0:03:02]} 7. b3 {[%clk 0:02:57]}  Ne4 {[%clk 0:02:55]} 8. Bb2 {[%clk 0:02:54]}  a5 {[%clk 0:02:55]} 9. Nc3 {[%clk 0:02:52]}  Nxc3 {[%clk 0:02:55]} 10. Bxc3 {[%clk 0:02:52]}  Nd7 {[%clk 0:02:56]} 11. e3 {[%clk 0:02:50]}  Nb6 {[%clk 0:02:55]} 12. Qe2 {[%clk 0:02:47]}  a4 {[%clk 0:02:55]} 13. Rfd1 {[%clk 0:02:39]}  axb3 {[%clk 0:02:54]} 14. axb3 {[%clk 0:02:39]}  Rxa1 {[%clk 0:02:54]} 15. Bxa1 {[%clk 0:02:39]}  Be6 {[%clk 0:02:53]} 16. c5 {[%clk 0:02:33]}  Nd7 {[%clk 0:02:54]} 17. b4 {[%clk 0:02:30]}  Bg4 {[%clk 0:02:53]} 18. b5 {[%clk 0:02:25]}  e5 {[%clk 0:02:52]} 19. bxc6 {[%clk 0:02:25]}  bxc6 {[%clk 0:02:52]} 20. Qa6 {[%clk 0:02:23]}  e4 {[%clk 0:02:51]} 21. Qxc6 {[%clk 0:02:06]}  exf3 {[%clk 0:02:51]} 22. Bf1 {[%clk 0:02:06]}  Nf6 {[%clk 0:02:51]} 23. Bc3 {[%clk 0:01:58]}  Ne4 {[%clk 0:02:50]} 24. Be1 {[%clk 0:01:57]}  h5 {[%clk 0:02:48]} 25. h3 {[%clk 0:01:52]}  Be6 {[%clk 0:02:46]} 26. Ra1 {[%clk 0:01:47]}  Qg5 {[%clk 0:02:39]} 27. h4 {[%clk 0:01:44]}  Qg4 {[%clk 0:02:39]} 28. Ra8 {[%clk 0:01:21]}  g5 {[%clk 0:02:39]} 29. Rxf8+ {[%clk 0:01:21]}  Bxf8 {[%clk 0:02:40]} 30. hxg5 {[%clk 0:01:15]}  h4 {[%clk 0:02:40]} 31. Qc7 {[%clk 0:01:03]}  hxg3 {[%clk 0:02:39]} 32. fxg3 {[%clk 0:01:02]}  Qxg5 {[%clk 0:02:35]} 33. Qf4 {[%clk 0:01:01]}  Bh6 {[%clk 0:02:33]} 34. c6 {[%clk 0:00:53]}  Qh5 {[%clk 0:02:29]} 35. Qb8+ {[%clk 0:00:38]}  Kg7 {[%clk 0:02:22]} 36. Bf2 {[%clk 0:00:32]}  Bg4 {[%clk 0:01:58]} 37. Qe5+ {[%clk 0:00:25]}  Qxe5 {[%clk 0:01:57]} 38. dxe5 {[%clk 0:00:26]}  Bc8 {[%clk 0:01:48]} 39. Bd3 {[%clk 0:00:19]}  Kf8 {[%clk 0:01:47]} 40. Bxe4 {[%clk 0:00:16]}  dxe4 {[%clk 0:01:47]} 41. Be1 {[%clk 0:00:14]}  Bxe3+ {[%clk 0:01:46]} 42. Kh2 {[%clk 0:00:13]}  Bc5 {[%clk 0:01:44]} 43. Ba5 {[%clk 0:00:11]}  e3 {[%clk 0:01:43]} 44. Bc7 {[%clk 0:00:11]}  Ke7 {[%clk 0:01:43]} 45. g4 {[%clk 0:00:10]}  e2 {[%clk 0:01:41]} 46. Bd6+ {[%clk 0:00:10]}  Bxd6 {[%clk 0:01:40]} 47. exd6+ {[%clk 0:00:11]}  Kxd6 {[%clk 0:01:41]} 0-1


[Site "https://www.chess.com"]